bitfinex/quotes_ETHUSD_20240924
["timestamp","ask_amount","ask_price","bid_price","bid_amount"]
[1727164001804,3.77132,2651.6,2651.1,3.77199]
[1727164002144,0.7699,2651.5,2651.1,7.54391]
[1727164002449,0.7699,2651.5,2651.1,3.77192]
[1727164003369,0.7699,2651.4,2650.9,3.77223]
[1727164003651,0.7699,2651.3,2650.9,3.77223]
[1727164003856,0.7699,2651.3,2650.9,3.77221]
[1727164004235,0.7749516,2651.3,2650.9,3.77221]
[1727164004430,0.7749516,2651.3,2650.9,3.7722]
[1727164004916,0.7749516,2651.3,2651.0,3.77215]
[1727164006462,0.77,2651.2,2650.6,3.77265]
[1727164006778,0.77,2651.0,2650.6,3.77265]
[1727164006976,3.7723,2650.9,2650.4,3.7729]
[1727164007142,0.77,2650.8,2650.4,3.7729]
[1727164007644,0.77,2650.8,2650.6,3.77264]
[1727164011239,0.77,2650.8,2650.7,3.77258]
[1727164011440,0.77,2650.8,2650.6,3.77264]
[1727164011978,0.77,2650.8,2650.7,3.77258]
[1727164012996,0.0050516,2651.0,2650.9,3.7723]
[1727164013486,0.0050516,2651.0,2650.9,4.53431711]
[1727164014357,0.0050516,2651.0,2650.9,4.60975425]
[1727164014557,0.0050516,2651.0,2650.9,5.15975425]
[1727164015075,0.0050516,2651.0,2650.9,4.53431711]
[1727164015264,0.0050516,2651.0,2650.9,3.7723]
[1727164017299,0.0050516,2651.0,2650.9,3.84773626]
[1727164018770,0.0050516,2651.0,2650.9,3.7723]
[1727164019912,0.0050516,2651.0,2650.9,5.1457]
[1727164020203,0.0050516,2651.0,2650.9,5.22112988]
[1727164020420,0.0050516,2651.0,2650.9,6.43269088]
[1727164024519,0.7866516,2651.0,2650.9,4.983861]
[1727164024725,0.7866516,2651.0,2650.5,3.77287]
[1727164024886,0.7866516,2651.0,2650.0,49.49915776]
[1727164024887,0.7816,2650.9,2650.3,3.77308]
[1727164025073,1.5669822,2650.8,2650.3,3.77308]
[1727164025408,1.5669822,2650.8,2650.5,3.77286]
[1727164025609,1.5669822,2650.7,2650.3,3.77306]
[1727164025794,0.7816,2650.7,2650.3,3.77306]
[1727164026115,1.5669822,2650.7,2650.3,3.77306]
[1727164026869,0.7816,2650.6,2650.1,3.7734]
[1727164027113,1.5669822,2650.5,2650.1,3.77335]
[1727164027294,0.7816,2650.5,2650.2,3.77328]
[1727164027499,0.7816,2650.4,2650.0,38.6926]
[1727164027709,0.7816,2650.4,2650.1,3.77335]
[1727164027910,1.5669822,2650.4,2650.1,3.77335]
[1727164028208,0.7816,2650.4,2650.1,7.5467]
[1727164028740,0.7816,2650.4,2650.2,3.7732]
[1727164028903,0.7816,2650.4,2650.3,3.77315]
[1727164033594,0.7816,2650.4,2650.1,3.77342]
[1727164034529,0.7816,2650.4,2650.1,3.8382559]
[1727164034688,0.7853822,2650.7,2650.5,3.77273]
[1727164034689,0.7816,2650.7,2650.5,3.77273]
[1727164035094,1.5720338,2651.0,2650.8,3.77233]
[1727164035300,0.7866516,2651.0,2650.8,3.77233]
[1727164035938,0.7866516,2651.0,2650.9,3.7723]
[1727164036643,0.0050516,2651.0,2650.9,5.15975614]
[1727164037498,0.0050516,2651.0,2650.9,8.15975614]
[1727164037727,0.0050516,2651.0,2650.9,8.0843182]
[1727164039642,0.0050516,2651.0,2650.9,8.61513115]
[1727164039938,0.0050516,2651.0,2650.9,9.43853115]
[1727164040247,0.0050516,2651.0,2650.9,20.65301867]
[1727164040839,0.0050516,2651.0,2650.9,21.03391075]
[1727164042241,0.0050516,2651.0,2650.9,15.42972423]
[1727164042436,0.0050516,2651.0,2650.9,9.28861028]
[1727164042746,0.0050516,2651.0,2650.9,8.9077182]
[1727164047254,0.0050516,2651.0,2650.9,8.0843182]
[1727164050749,0.0050516,2651.0,2650.9,8.61513115]
[1727164052448,0.0050516,2651.0,2650.9,8.0843182]
[1727164055558,0.0050516,2651.0,2650.9,7.3223]
[1727164055712,0.7983,2651.1,2651.0,3.77216]
[1727164056854,0.7983,2651.5,2650.9,3.55]
[1727164057016,0.7983,2651.5,2651.2,3.77176]
[1727164057449,0.7983,2651.5,2651.1,7.54392]
[1727164058362,0.7983,2651.4,2651.1,3.77191]
[1727164058565,0.7983,2651.4,2651.2,3.77186]
[1727164061122,0.7983,2651.4,2651.3,3.77173]
[1727164063175,0.8327682,2651.6,2651.5,3.77145]
[1727164063530,0.8327682,2651.6,2651.4,3.77159]
[1727164064427,0.8327682,2651.6,2651.3,3.7717]
[1727164064635,0.8327682,2651.6,2651.2,3.77177]
[1727164064837,0.8327682,2651.6,2651.2,7.54357]
[1727164065133,1.74880924,2651.6,2651.2,3.77177]
[1727164065340,0.7983,2651.5,2651.2,3.77177]
[1727164066382,0.7983,2651.5,2651.1,3.77193]
[1727164066563,0.7543,2651.2,2650.5,0.7773]
[1727164066736,0.7543,2651.1,2650.7,3.77248]
[1727164067173,4.52639,2651.1,2650.6,3.77272]
[1727164067352,0.7543,2651.0,2650.5,7.54558]
[1727164067551,0.7543,2651.0,2650.2,3.77326]
[1727164067779,0.7543,2651.0,2650.6,3.77265]
[1727164068273,0.7543,2651.0,2650.6,7.5453]
[1727164068873,0.7543,2651.0,2650.7,3.77248]
[1727164069071,0.7543,2651.0,2650.8,3.77244]
[1727164069879,0.7543,2651.0,2650.6,3.77265]
[1727164070960,0.7543,2651.0,2650.6,7.5453]
[1727164071398,0.7543,2651.0,2650.6,3.77265]
[1727164071546,0.7543,2650.9,2650.4,7.54579]
[1727164071741,4.52671,2650.9,2650.4,3.77287]
[1727164071980,4.52671,2650.9,2650.2,3.77321]
[1727164071981,0.7543,2650.7,2650.2,3.77321]
[1727164072968,0.7543,2650.7,2650.2,7.54642]
[1727164073647,0.7543,2650.7,2650.3,3.77311]
[1727164074680,0.7543,2650.7,2650.1,3.0]
[1727164074681,0.7543,2650.7,2650.4,3.77293]
[1727164075747,0.7543,2650.7,2650.2,3.77328]
[1727164075985,0.7543,2650.7,2650.3,3.77315]
[1727164076186,1.23030572,2650.7,2650.3,3.77315]
[1727164076356,0.7543,2650.6,2650.3,3.77315]
[1727164076888,0.7543,2650.6,2650.4,3.773]
[1727164077058,0.7543,2650.6,2650.4,7.54593]
[1727164077263,0.7543,2650.6,2650.4,7.54585]
[1727164077951,0.7543,2650.6,2650.4,3.77292]
[1727164078151,0.7543,2650.6,2650.5,3.77287]
[1727164079449,0.7543,2650.8,2650.6,3.77273]
[1727164080069,1.5396822,2650.8,2650.6,3.77273]
[1727164080472,0.7543,2650.8,2650.6,3.77264]
[1727164080794,0.7853822,2650.9,2650.6,3.77264]
[1727164080953,1.5605822,2651.0,2650.6,4.46965443]
[1727164081149,1.5605822,2651.0,2650.8,3.77244]
[1727164083888,1.5605822,2651.0,2650.6,4.46964443]
[1727164084088,1.5605822,2651.0,2650.7,3.77255]
[1727164084989,0.7853822,2650.9,2650.7,3.77255]
[1727164085192,1.5605822,2651.0,2650.6,3.7726]
[1727164085358,1.5605822,2651.0,2650.8,3.77236]
[1727164086499,1.5605822,2651.0,2650.8,3.77235]
[1727164088581,1.5605822,2651.0,2650.9,3.7723]
[1727164089098,1.5605822,2651.0,2650.8,3.77235]
[1727164089304,5.3327422,2651.0,2650.6,3.77264]
[1727164089598,0.7853822,2650.9,2650.6,3.77264]
[1727164089955,0.7853822,2650.8,2650.6,7.5453]
[1727164090301,0.7853822,2650.8,2650.7,3.77258]
[1727164092890,0.7853822,2650.8,2650.5,3.77286]
[1727164093084,0.7853822,2650.9,2650.6,3.77268]
[1727164093802,0.7853822,2650.9,2650.4,3.77293]
[1727164094008,1.5605822,2650.8,2650.4,7.54581]
[1727164094373,0.7853822,2650.7,2650.5,3.77287]
[1727164094571,1.5605822,2650.8,2650.5,3.77287]
[1727164095102,0.7853822,2650.7,2650.5,3.77287]
[1727164095318,0.7853822,2650.7,2650.4,3.77288]
[1727164095730,0.7752,2650.6,2650.2,3.7732]
[1727164096021,0.7853822,2650.5,2650.2,3.77326]
[1727164096548,0.7853822,2650.5,2650.2,3.77323]
[1727164097022,0.7853822,2650.5,2650.2,7.54641]
[1727164097224,1.5605822,2650.6,2650.2,11.3846459]
[1727164097806,0.7853822,2650.5,2650.2,11.3846459]
[1727164098226,0.7853822,2650.5,2650.2,7.6114359]
[1727164098385,0.7853822,2650.5,2650.2,3.77318]
[1727164098587,0.7853822,2650.5,2650.1,0.38243855]
[1727164098817,0.7752,2650.6,2650.1,0.38243855]
[1727164098818,0.7853822,2650.3,2650.1,0.38243855]
[1727164099022,0.7853822,2650.3,2650.1,4.15578855]
[1727164101190,0.7853822,2650.3,2650.1,0.38243855]
[1727164102331,0.7853822,2650.3,2650.1,4.15585855]
[1727164104351,0.7853822,2650.3,2650.1,4.15580855]
[1727164104677,0.7853822,2650.3,2650.1,3.77337]
[1727164107039,0.7853822,2650.3,2650.0,38.6926]
[1727164107354,0.7853822,2650.2,2650.0,42.4661]
[1727164107752,0.7853822,2650.2,2650.0,38.6926]
[1727164108156,1.5605822,2650.1,2650.0,38.6926]
[1727164112176,0.7752,2650.1,2650.0,38.6926]
[1727164113044,1.56646613,2650.1,2650.0,38.6926]
[1727164113281,0.7752,2650.1,2650.0,38.6926]
[1727164113480,1.56643885,2650.1,2650.0,38.6926]
[1727164113649,0.7752,2650.1,2650.0,38.6926]
[1727164115283,1.96208182,2650.1,2650.0,38.6926]
[1727164115649,0.7752,2650.1,2650.0,38.6926]
[1727164116376,1.96184195,2650.1,2650.0,38.6926]
[1727164120375,1.18664195,2650.1,2650.0,38.6926]
[1727164120682,0.79077521,2650.1,2650.0,42.5308559]
[1727164120883,0.79077521,2650.1,2650.0,46.3044359]
[1727164121260,0.79077521,2650.1,2650.0,42.46618]
[1727164121480,0.79077521,2650.2,2650.1,3.77344]
[1727164121660,1.97741716,2650.4,2650.2,3.7733]
[1727164121879,0.79077521,2650.5,2650.4,3.77301]
[1727164122490,0.79077521,2650.5,2650.3,4.60045]
[1727164122991,0.79077521,2650.4,2650.2,3.77326]
[1727164126500,0.79077521,2650.3,2650.2,3.77326]
[1727164127399,0.79077521,2650.4,2650.2,3.77326]
[1727164127902,0.79077521,2650.4,2650.1,4.60065]
[1727164128104,0.79077521,2650.3,2650.1,4.60065]
[1727164128695,0.79077521,2650.3,2650.2,3.7733]
[1727164130396,1.59617521,2650.3,2650.0,38.6926]
[1727164130611,1.18664195,2650.1,2650.0,38.6926]
[1727164130908,9.11746441,2650.2,2650.0,38.6926]
[1727164131061,6.14960441,2650.1,2650.0,38.6926]
[1727164131267,5.76571588,2650.1,2650.0,38.6926]
[1727164131603,6.14960441,2650.1,2650.0,38.6926]
[1727164131795,2.37616441,2650.1,2650.0,38.6926]
[1727164132569,1.18701254,2650.1,2650.0,38.6926]
[1727164134712,1.57076441,2650.2,2650.0,38.6926]
[1727164134875,1.18731157,2650.1,2650.0,38.6926]
[1727164135075,1.18730027,2650.1,2650.0,38.6926]
[1727164135308,1.57076441,2650.2,2650.0,38.6926]
[1727164136373,1.57076441,2650.1,2650.0,38.6926]
[1727164137172,1.57076441,2650.2,2650.0,38.6926]
[1727164137482,1.57076441,2650.1,2650.0,38.6926]
[1727164140387,1.97994473,2650.2,2650.0,38.6926]
[1727164140824,1.58458835,2650.1,2650.0,38.6926]
[1727164141389,1.97994473,2650.1,2650.0,38.6926]
[1727164141586,5.75338473,2650.1,2650.0,38.6926]
[1727164141790,7.6073812,2650.1,2650.0,38.6926]
[1727164142028,7.60858485,2650.1,2650.0,38.6926]
[1727164142335,15.48403373,2650.1,2650.0,38.6926]
[1727164142686,13.10665568,2650.1,2650.0,38.6926]
[1727164142883,15.88026341,2650.1,2650.0,38.6926]
[1727164143544,13.10665568,2650.1,2650.0,38.6926]
[1727164143890,15.88026341,2650.1,2650.0,38.6926]
[1727164145196,13.10665568,2650.1,2650.0,38.6926]
[1727164146336,15.88026341,2650.1,2650.0,38.6926]
[1727164146794,13.10665568,2650.1,2650.0,38.6926]
[1727164147441,15.87811167,2650.1,2650.0,38.6926]
[1727164147608,13.10665568,2650.1,2650.0,38.6926]
[1727164148020,16.38132401,2650.1,2650.0,38.6926]
[1727164148216,16.93132401,2650.1,2650.0,38.6926]
[1727164148527,16.93132401,2650.1,2650.0,38.44724742]
[1727164149421,13.65665568,2650.1,2650.0,38.44724742]
[1727164149727,16.93132401,2650.1,2650.0,38.44724742]
[1727164150049,13.65665568,2650.1,2650.0,38.44724742]
[1727164150710,16.93132401,2650.1,2650.0,38.44724742]
[1727164151337,13.65665568,2650.1,2650.0,38.44724742]
[1727164156922,16.42178245,2650.1,2650.0,38.44724742]
[1727164158454,14.74154284,2650.1,2650.0,38.44724742]
[1727164158826,15.13643539,2650.1,2650.0,38.44724742]
[1727164160981,12.37130862,2650.1,2650.0,38.44724742]
[1727164166299,14.18925443,2650.1,2650.0,38.44724742]
[1727164166670,11.82130862,2650.1,2650.0,38.44724742]
[1727164167072,14.18925443,2650.1,2650.0,38.44724742]
[1727164167298,11.82130862,2650.1,2650.0,38.44724742]
[1727164167503,14.18925443,2650.1,2650.0,38.44724742]
[1727164167772,10.46574911,2650.1,2650.0,38.44724742]
[1727164169412,11.81618535,2650.1,2650.0,38.44724742]
[1727164170593,14.18531377,2650.1,2650.0,38.44724742]
[1727164171374,11.81618535,2650.1,2650.0,38.44724742]
[1727164172981,11.81618535,2650.1,2650.0,38.20357205]
[1727164172982,12.36618535,2650.1,2650.0,38.20357205]
[1727164173187,15.13075308,2650.1,2650.0,38.20357205]
[1727164173502,12.36618535,2650.1,2650.0,38.20357205]
[1727164177213,15.63551695,2650.1,2650.0,38.20357205]
[1727164179323,12.36618535,2650.1,2650.0,38.20357205]
[1727164179522,15.63551695,2650.1,2650.0,38.20357205]
[1727164179884,12.36618535,2650.1,2650.0,38.20357205]
[1727164180309,15.63551695,2650.1,2650.0,38.20357205]
[1727164181733,12.36618535,2650.1,2650.0,38.20357205]
[1727164181909,15.63780372,2650.1,2650.0,38.20357205]
[1727164182928,12.36618535,2650.1,2650.0,38.20357205]
[1727164183529,15.63780372,2650.1,2650.0,38.20357205]
[1727164184818,12.36618535,2650.1,2650.0,38.20357205]
[1727164187437,8.51876879,2650.1,2650.0,38.20357205]
[1727164188200,11.79563697,2650.1,2650.0,38.20357205]
[1727164188528,11.79659694,2650.1,2650.0,38.20357205]
[1727164188822,8.51876879,2650.1,2650.0,38.20357205]
[1727164189723,11.79660178,2650.1,2650.0,38.20357205]
[1727164191942,11.7973961,2650.1,2650.0,38.20357205]
[1727164196648,14.12838872,2650.1,2650.0,38.20357205]
[1727164196939,10.84976141,2650.1,2650.0,38.20357205]
[1727164201845,12.2931815,2650.1,2650.0,38.20357205]
[1727164202053,10.51218888,2650.1,2650.0,38.20357205]
[1727164205609,14.40866635,2650.1,2650.0,38.20357205]
[1727164210766,17.24458888,2650.1,2650.0,11.37677818]
[1727164211052,8.07698,2649.3,2649.2,0.0038951]
[1727164211254,10.87083633,2649.3,2649.2,0.0038951]
[1727164211429,11.95693049,2649.3,2649.2,0.0038951]
[1727164211791,12.35190555,2649.3,2649.2,0.0038951]
[1727164213124,10.90848546,2649.3,2649.2,0.0038951]
[1727164213327,9.0699913,2649.3,2649.2,0.0038951]
[1727164213544,13.78330899,2649.3,2649.2,0.0038951]
[1727164213851,16.00681432,2649.3,2649.2,0.0038951]
[1727164214619,12.73691672,2649.3,2649.2,0.0038951]
[1727164214971,12.18691672,2649.3,2649.2,0.0038951]
[1727164215251,12.73112097,2649.3,2649.2,0.0038951]
[1727164215437,9.96341139,2649.3,2649.2,0.0038951]
[1727164215868,8.5199913,2649.3,2649.2,0.0038951]
[1727164216069,0.39497506,2649.3,2649.2,0.8361951]
[1727164216586,1.58172371,2649.3,2649.2,0.8361951]
[1727164216882,1.97666124,2649.3,2649.2,1.29730661]
[1727164217683,1.581495,2649.3,2649.2,5.07202661]
[1727164217886,1.581495,2649.3,2649.2,1.29730661]
[1727164218247,1.18655747,2649.3,2649.2,1.29730661]
[1727164218548,1.58148607,2649.3,2649.2,1.29730661]
[1727164219552,0.3949286,2649.3,2649.2,1.29730661]
[1727164219746,1.58141648,2649.3,2649.2,1.29730661]
[1727164220954,1.58141648,2649.3,2649.2,5.07202661]
[1727164221360,0.3949286,2649.3,2649.2,5.07202661]
[1727164221572,1.58141648,2649.3,2649.2,5.07202661]
[1727164221799,1.18596731,2649.3,2649.2,5.07202661]
[1727164223749,1.18596731,2649.3,2649.2,1.29730661]
[1727164224060,0.3949286,2649.3,2649.2,0.8361951]
[1727164225260,1.58141648,2649.3,2649.2,0.8361951]
[1727164227961,0.3949286,2649.3,2649.2,0.8361951]
[1727164228164,0.3949286,2649.3,2649.2,4.6109151]
[1727164228369,1.18567675,2649.3,2649.2,4.6109151]
[1727164228591,1.18567675,2649.3,2649.2,5.44947961]
[1727164229696,1.18567675,2649.3,2649.2,1.67475961]
[1727164229877,1.18567675,2649.3,2649.2,5.44947961]
[1727164232396,1.18567675,2649.3,2649.2,1.67475961]
[1727164232570,0.3949286,2649.3,2649.2,1.67475961]
[1727164232923,1.18565951,2649.3,2649.2,5.44947961]
[1727164234068,1.18565951,2649.3,2649.2,1.67475961]
[1727164234327,1.18571551,2649.3,2649.2,0.8361951]
[1727164234480,0.3949286,2649.3,2649.2,0.8361951]
[1727164234784,1.97665231,2649.3,2649.2,4.6109151]
[1727164234969,0.3949286,2649.3,2649.2,4.6109151]
[1727164235173,0.3949286,2649.3,2649.2,5.76219392]
[1727164235395,0.79080424,2649.5,2649.2,4.92989392]
[1727164235572,0.79080424,2649.5,2649.3,0.7816]
[1727164235999,0.79080424,2649.4,2649.3,0.7816]
[1727164236825,0.79080424,2649.4,2649.3,4.55618]
[1727164236981,0.79080424,2649.4,2649.3,5.81750271]
[1727164237387,0.79080424,2649.5,2649.4,4.55603]
[1727164237972,1.18570809,2649.6,2649.4,4.55603]
[1727164238190,0.79080424,2649.5,2649.4,4.55603]
[1727164241337,1.18570809,2649.6,2649.4,4.55603]
[1727164242243,1.18570809,2649.6,2649.4,5.51561078]
[1727164243093,1.18570809,2649.6,2649.5,3.77429]
[1727164243292,0.79080424,2649.6,2649.5,3.77429]
[1727164243533,0.79080424,2649.7,2649.5,4.55589]
[1727164243903,0.79080424,2649.7,2649.6,4.63122895]
[1727164243904,0.08031605,2649.7,2649.6,4.63122895]
[1727164244234,1.18620636,2650.2,2650.1,3.77344]
[1727164244536,1.18620636,2650.4,2650.2,4.5549]
[1727164244736,1.18620636,2650.4,2650.3,5.21593794]
[1727164245031,1.18620636,2650.5,2650.3,1.44278794]
[1727164245497,1.18620636,2650.6,2650.3,1.44278794]
[1727164245834,4.95894636,2650.6,2650.2,0.7816]
[1727164245997,1.18620636,2650.5,2650.2,0.7816]
[1727164246192,1.18620636,2650.5,2650.3,1.44278794]
[1727164246397,1.18620636,2650.7,2650.3,3.77314]
[1727164246597,1.18620636,2650.7,2650.2,3.98076119]
[1727164246795,4.95880636,2650.7,2650.2,0.85706043]
[1727164247027,4.95880636,2650.7,2650.2,0.7816]
[1727164247331,4.95880636,2650.7,2650.2,4.55487]
[1727164247912,4.95880636,2650.7,2650.2,0.7816]
[1727164248105,3.7728,2650.6,2650.2,0.7816]
[1727164248308,4.95900636,2650.6,2650.2,0.7816]
[1727164249352,1.18620636,2650.6,2650.2,4.55487]
[1727164252734,1.18620636,2650.6,2650.4,0.8163]
[1727164253725,1.18620636,2650.6,2650.5,3.77287]
[1727164253925,1.18620636,2650.6,2650.4,0.8163]
[1727164256516,1.18620636,2650.6,2650.0,3.12370076]
[1727164256517,4.95901636,2650.6,2650.0,0.8163]
[1727164256712,4.95901636,2650.6,2650.1,3.77341]
[1727164256943,5.69097037,2650.6,2650.0,0.8163]
[1727164257125,3.77288,2650.5,2650.0,4.58981]
[1727164257448,3.77288,2650.5,2650.0,0.8163]
[1727164257449,3.77296,2650.5,2650.0,0.8163]
[1727164257651,3.77296,2650.5,2650.0,4.58979]
[1727164258348,9.46378037,2650.6,2650.1,3.77344]
[1727164259015,3.77297,2650.5,2650.0,4.58987]
[1727164259211,5.69097037,2650.6,2650.0,0.8163]
[1727164259420,3.77287,2650.5,2650.1,3.77344]
[1727164260350,4.16771538,2650.5,2650.1,3.77344]
[1727164260537,4.16771538,2650.5,2650.0,0.8163]
[1727164260753,4.16771538,2650.5,2650.0,4.58987]
[1727164260955,0.39484538,2650.5,2650.0,4.5898]
[1727164261425,4.16783538,2650.5,2650.0,4.58986]
[1727164262230,3.77301,2650.4,2650.0,0.8163]
[1727164262731,0.78940146,2650.4,2650.0,4.58977]
[1727164262931,0.78940146,2650.3,2650.0,4.58977]
[1727164263168,0.78940146,2650.3,2650.0,0.8163]
[1727164263368,0.78940146,2650.3,2650.0,4.58986]
[1727164263572,0.78940146,2650.3,2650.0,0.8163]
[1727164264167,4.56268146,2650.3,2650.0,0.8163]
[1727164264432,4.56256146,2650.3,2650.0,0.8163]
[1727164264727,0.78940146,2650.2,2650.0,0.8163]
[1727164264923,4.56256146,2650.3,2650.0,0.8163]
[1727164265141,0.78940146,2650.3,2650.0,0.8163]
[1727164265872,0.78940146,2650.2,2650.0,0.8163]
[1727164266045,0.78940146,2650.3,2650.0,0.8163]
[1727164268339,0.78940146,2650.3,2650.0,2.25841038]
[1727164269472,0.78940146,2650.3,2650.0,6.03196038]
[1727164270545,0.78940146,2650.2,2650.0,6.03196038]
[1727164271172,0.78940146,2650.3,2650.0,6.03196038]
[1727164271476,0.78940146,2650.2,2650.0,2.25841038]
[1727164271643,0.78940146,2650.3,2650.0,2.25841038]
[1727164271847,0.78940146,2650.2,2650.0,2.25841038]
[1727164272482,0.78940146,2650.2,2650.0,0.8163]
[1727164273076,4.56276146,2650.2,2649.8,0.8001]
[1727164273403,0.78940146,2650.1,2649.8,0.8001]
[1727164274865,3.77358,2650.0,2649.8,0.8001]
[1727164275060,0.78940146,2649.9,2649.6,0.8001]
[1727164275494,0.78940146,2649.9,2649.6,4.57424]
[1727164275906,0.78940146,2649.9,2649.6,6.01635038]
[1727164276082,0.78940146,2649.9,2649.6,6.01627038]
[1727164276291,0.78940146,2649.9,2649.6,9.79033038]
[1727164276497,0.78940146,2649.8,2649.6,9.79034038]
[1727164276703,0.78940146,2649.9,2649.6,9.79034038]
[1727164277214,0.78940146,2649.8,2649.7,3.77397]
[1727164277424,0.78940146,2649.9,2649.6,6.01627038]
[1727164277626,0.78940146,2649.8,2649.6,9.79034038]
[1727164277782,0.78940146,2649.8,2649.6,6.01627038]
[1727164277982,0.78940146,2649.8,2649.7,3.77401]
[1727164279603,0.78940146,2649.8,2649.6,6.01627038]
[1727164279803,0.78940146,2649.8,2649.6,9.79033038]
[1727164280313,0.78940146,2649.8,2649.7,3.77401]
[1727164281517,1.18620636,2649.9,2649.7,3.77401]
[1727164281721,0.7505,2649.8,2649.2,0.0038951]
[1727164281942,1.58149141,2649.4,2649.2,0.0038951]
[1727164282086,1.58149141,2649.3,2649.2,0.0038951]
[1727164282285,1.1862219,2649.3,2649.2,0.0038951]
[1727164283097,1.11935137,2649.3,2649.2,0.0038951]
[1727164283312,1.18606224,2649.3,2649.2,0.0038951]
[1727164283610,1.58149141,2649.3,2649.2,0.0038951]
[1727164283827,2.71704144,2649.3,2649.2,0.0038951]
[1727164284331,1.18586004,2649.3,2649.2,0.0038951]
[1727164285608,0.79030249,2649.4,2649.3,3.77458]
[1727164285808,0.79030249,2649.4,2649.3,4.92259342]
[1727164286117,0.79030249,2649.5,2649.4,3.77443]
[1727164286976,1.18586004,2649.5,2649.3,1.14801342]
[1727164287106,0.79035961,2649.4,2649.2,7.70546418]
[1727164287304,0.79035961,2649.5,2649.3,3.77456]
[1727164288542,0.79035961,2649.4,2649.3,3.77456]
[1727164289254,0.79035961,2649.4,2649.2,8.3532651]
[1727164290645,0.79035961,2649.4,2649.2,0.8039951]
[1727164290646,0.79035961,2649.3,2649.2,0.8039951]
[1727164290859,0.79025344,2649.3,2649.2,0.8039951]
[1727164291765,0.79025344,2649.3,2649.2,4.5787151]
[1727164291925,0.79025344,2649.4,2649.2,4.5787151]
[1727164292326,0.79025344,2649.4,2649.2,8.3534351]
[1727164292524,0.79025344,2649.5,2649.4,3.77443]
[1727164292771,0.79025344,2649.6,2649.5,3.77429]
[1727164292927,0.79025344,2649.6,2649.5,4.57879]
[1727164293272,0.79025344,2649.7,2649.6,3.77415]
[1727164293631,1.18586004,2649.7,2649.6,3.77415]
[1727164293828,0.79031366,2649.8,2649.7,3.77401]
[1727164294238,1.58066942,2649.9,2649.7,3.77401]
[1727164294239,0.79031366,2649.9,2649.7,3.77401]
[1727164294766,0.79031366,2649.9,2649.8,3.77386]
[1727164294944,0.79031366,2649.9,2649.7,3.774]
[1727164295141,0.79031366,2649.9,2649.8,3.77386]
[1727164295962,0.79049521,2649.9,2649.8,3.77386]
[1727164296453,0.79048817,2649.9,2649.8,3.77386]
[1727164297344,1.18586004,2650.0,2649.8,3.77386]
[1727164298374,1.18586004,2649.9,2649.6,0.8045]
[1727164298587,1.18586004,2649.9,2649.6,4.57864]
[1727164298588,0.79058217,2649.7,2649.6,4.57864]
[1727164298876,1.18587325,2649.8,2649.6,5.42148834]
[1727164299074,0.79065126,2649.7,2649.6,5.42148834]
[1727164302578,1.18587325,2649.8,2649.6,5.42148834]
[1727164302777,1.58149141,2649.9,2649.6,4.57864]
[1727164302778,1.18587325,2649.7,2649.6,4.57864]
[1727164303684,1.18587325,2649.8,2649.6,4.57864]
[1727164303843,0.79141484,2649.7,2649.6,4.57864]
[1727164304669,0.79146722,2649.7,2649.6,4.57864]
[1727164304874,1.18587325,2649.8,2649.6,4.57864]
[1727164305076,1.18587325,2649.7,2649.6,4.57864]
[1727164306051,1.18587325,2649.8,2649.6,4.57864]
[1727164306453,1.18587325,2649.7,2649.5,3.77421]
[1727164307550,1.18587325,2649.7,2649.5,3.77418]
[1727164307748,1.18587325,2649.7,2649.4,3.77442]
[1727164307970,0.79163272,2649.5,2649.4,3.77442]
[1727164308172,0.79163272,2649.5,2649.4,4.86417769]
[1727164309178,0.79163272,2649.6,2649.5,3.77429]
[1727164309355,0.79163272,2649.6,2649.5,4.52839]
[1727164309685,0.79163272,2649.7,2649.6,3.77415]
[1727164309887,0.79163272,2649.7,2649.6,5.03351495]
[1727164312274,0.79163272,2649.7,2649.6,3.77415]
[1727164312584,1.18587325,2649.8,2649.6,3.77415]
[1727164314193,1.18587325,2649.7,2649.6,3.77415]
[1727164318262,1.15753011,2649.9,2649.7,3.774]
[1727164320992,0.8266,2649.8,2649.5,4.52831]
[1727164321307,0.8266,2649.8,2649.6,3.77413]
[1727164323307,0.8266,2649.8,2649.5,3.77421]
[1727164323469,5.060488,2649.8,2649.3,3.77447]
[1727164323677,0.8266,2649.8,2649.2,0.0038951]
[1727164324004,0.39479305,2650.1,2649.2,0.0038951]
[1727164324005,0.8266,2649.5,2649.2,0.0038951]
[1727164324808,0.8266,2649.5,2649.2,3.7786051]
[1727164325601,0.8266,2649.5,2649.3,3.77456]
[1727164325810,0.8266,2649.5,2649.2,3.7786051]
[1727164327311,1.18824442,2649.3,2649.2,0.0038951]
[1727164327519,1.5843259,2649.3,2649.2,0.0038951]
[1727164327811,1.15798854,2649.3,2649.2,0.0038951]
[1727164328114,2.74231444,2649.4,2649.2,0.0038951]
[1727164328333,2.74231444,2649.3,2649.2,3.7786151]
[1727164328539,1.15798854,2649.3,2649.2,3.7786151]
[1727164328908,1.5843259,2649.4,2649.2,3.7786151]
[1727164329112,1.18831269,2649.3,2649.2,8.59794319]
[1727164329329,0.79216061,2649.4,2649.3,3.77458]
[1727164330344,0.79216061,2649.4,2649.3,5.21723467]
[1727164330500,0.11603915,2649.4,2649.3,5.98003467]
[1727164330698,1.97913421,2649.6,2649.5,3.77429]
[1727164330699,1.583121,2649.6,2649.5,3.77429]
[1727164331037,0.39480831,2649.6,2649.5,5.81491914]
[1727164331238,1.18831269,2649.7,2649.5,5.89039228]
[1727164331544,1.18831269,2649.8,2649.6,4.53695]
[1727164331701,1.18831269,2649.8,2649.7,5.29213628]
[1727164332101,1.18831269,2649.9,2649.8,3.77386]
[1727164332337,2.49386528,2649.9,2649.8,3.77386]
[1727164332503,2.49386528,2649.9,2649.8,4.91740995]
[1727164333753,3.64806491,2649.9,2649.8,4.91740995]
[1727164334038,2.09776089,2649.9,2649.8,4.91740995]
[1727164334208,0.90953938,2649.9,2649.8,4.91740995]
[1727164334555,2.09770338,2649.9,2649.8,4.91740995]
[1727164335434,3.71425665,2649.9,2649.8,4.91740995]
[1727164337526,2.12993075,2649.9,2649.8,4.91740995]
[1727164337736,2.49396307,2649.9,2649.8,4.91740995]
[1727164338927,2.12993075,2649.9,2649.8,4.91740995]
[1727164339247,0.90953938,2649.9,2649.8,4.91740995]
[1727164339461,2.49409448,2649.9,2649.8,4.91740995]
[1727164341459,2.49409448,2649.9,2649.8,3.77386]
[1727164342460,3.71448585,2649.9,2649.8,3.77386]
[1727164342946,2.49409448,2649.9,2649.8,3.77386]